lending/lending_fUSD_20240202
["ID","MTS","AMOUNT","RATE_DAILY","PERIOD"]
[313161957,1706835040336,-302.0,0.00053158,4]
[313161958,1706835040345,-550.0,0.00053424,7]
[313161959,1706835040355,-558.8325,0.00053424,120]
[313161960,1706835040365,-150.12,0.00053545,120]
[313161961,1706835040374,-26713.01452817,0.00053555,14]
[313161962,1706835040388,-2301.1932,0.00053555,14]
[313161963,1706835040399,-9298.42526999,0.00053555,14]
[313161964,1706835040411,-311.184893,0.00053555,14]
[313161969,1706835041424,-827.91845062,0.00053555,14]
[313161970,1706835041436,-630.15733632,0.00053555,14]
[313161971,1706835041460,-150.0,0.000335,2]
[313161972,1706835041469,-150.0,0.00044456,2]
[313161973,1706835041478,-150.0,0.00045089,2]
[313161974,1706835041488,-9918.1063219,0.00053555,14]
[313161975,1706835041497,-550.0,0.00053698,7]
[313161976,1706835041506,-155.83,0.00053842,2]
[313161977,1706835041515,-550.0,0.00053972,7]
[313161978,1706835041524,-150.12,0.0005399,120]
[313161979,1706835041533,-1064.0,0.0005399,2]
[313161980,1706835041542,-171.0,0.0005399,2]
[313161981,1706835041551,-5000.0,0.00054,2]
[313161982,1706835041560,-30198.92422883,0.00054,5]
[313161983,1706835041569,-150.0,0.00054074,2]
[313161984,1706835041578,-745.11,0.00054109,120]
[313161985,1706835041588,-550.0,0.00054246,7]
[313161986,1706835041597,-67.08802231,0.0005452,7]
[313161987,1706835041610,-482.91197769,0.0005452,7]
[313161988,1706835041618,-150.12,0.00054565,120]
[313161989,1706835041627,-557.79563342,0.00054575,7]
[313161990,1706835041639,-693.40402168,0.00054575,7]
[313161991,1706835041650,-368.0560308,0.00054575,7]
[313161992,1706835041662,-1395.58983724,0.00054575,7]
[313161993,1706835041673,-1985.15447686,0.00054575,7]
[313161994,1706835041683,-726.88778275,0.00054685,90]
[313161995,1706835041694,-1499.99866017,0.00054685,90]
[313161996,1706835041716,-3073.11355708,0.00054685,90]
[313161997,1706835041725,-2000.0,0.00054725,5]
[313161998,1706835041734,-550.0,0.00054794,7]
[313161999,1706835041743,-141.07997892,0.00054794,120]
[313162020,1706835042818,-358.92002108,0.00054794,120]
[313162021,1706835042828,-500.0,0.00054794,120]
[313162022,1706835042837,-500.0,0.00054794,120]
[313162023,1706835042846,-155.1319877,0.00054794,120]
[313162024,1706835042939,-344.8680123,0.00054794,120]
[313162025,1706835042949,-500.0,0.00054794,120]
[313162026,1706835042958,-500.0,0.00054794,120]
[313162027,1706835042968,-455.77721824,0.00054794,120]
[313162028,1706835042977,-1000.0,0.00054794,120]
[313162029,1706835042986,-931.3875,0.00054794,120]
[313162030,1706835042995,-8000.0,0.000548,120]
[313162031,1706835043004,-721.0,0.0005489,2]
[313162032,1706835043015,-180.0,0.0005489,2]
[313162033,1706835043024,-1196.77769296,0.000549,2]
[313162034,1706835043033,-204.19173295,0.000549,11]
[313162035,1706835043043,-150.12,0.0005497,120]
[313162036,1706835043052,-150.12,0.0005497,120]
[313162038,1706835043062,-150.12,0.0005497,120]
[313162039,1706835043071,-150.12,0.0005497,120]
[313162041,1706835043080,-150.12,0.0005497,120]
[313162043,1706835043089,-19499.42417036,0.0005498,13]
[313162055,1706835043983,-174797.89601364,0.0005498,13]
[313162056,1706835043995,-168.30147256,0.0005498,15]
[313162057,1706835044005,-150.12,0.0005498,120]
[313162058,1706835044016,-150.12,0.0005498,120]
[313162059,1706835044027,-150.12,0.0005498,120]
[313162060,1706835044038,-150.12,0.0005498,120]
[313162061,1706835044048,-150.12,0.0005498,120]
[313162062,1706835044058,-150.12,0.0005498,120]
[313162063,1706835044067,-150.12,0.0005498,120]
[313162064,1706835044077,-150.12,0.0005498,120]
[313162065,1706835044086,-150.12,0.0005498,120]
[313162066,1706835044095,-150.12,0.0005498,120]
[313162067,1706835044105,-150.12,0.0005498,120]
[313162068,1706835044115,-150.12,0.0005498,120]
[313162069,1706835044127,-150.12,0.0005498,120]
[313162070,1706835044138,-150.12,0.0005499,120]
[313162071,1706835044148,-150.12,0.0005499,120]
[313162072,1706835044158,-150.12,0.0005499,120]
[313162073,1706835044169,-150.12,0.0005499,120]
[313162074,1706835044179,-150.12,0.0005499,120]
[313162075,1706835044189,-150.12,0.0005499,120]
[313162076,1706835044200,-150.12,0.0005499,120]
[313162077,1706835044210,-150.12,0.0005499,120]
[313162078,1706835044220,-485743.30046,0.0005499,13]
[313162079,1706835044230,-150.12,0.0005499,120]
[313162080,1706835044243,-150.12,0.0005499,120]
[313162081,1706835044254,-150.12,0.0005499,120]
[313162082,1706835044265,-150.12,0.0005499,120]
[313162083,1706835044275,-150.12,0.0005499,120]
[313162084,1706835044286,-150.12,0.0005499,120]
[313162085,1706835044297,-150.12,0.0005499,120]
[313162086,1706835044309,-150.12,0.0005499,120]
[313162087,1706835044319,-150.12,0.0005499,120]
[313162088,1706835044330,-150.12,0.0005499,120]
[313162089,1706835044340,-150.12,0.0005499,120]
[313162090,1706835044351,-150.12,0.0005499,120]
[313162091,1706835044361,-150.12,0.0005499,120]
[313162092,1706835044371,-150.12,0.0005499,120]
[313162093,1706835044381,-150.12,0.0005499,120]
[313162094,1706835044392,-150.12,0.0005499,120]
[313162095,1706835044403,-150.12,0.0005499,120]
[313162096,1706835044413,-150.12,0.0005499,120]
[313162097,1706835044423,-150.12,0.0005499,120]
[313162098,1706835044434,-150.12,0.0005499,120]
[313162099,1706835044444,-150.12,0.0005499,120]
[313162100,1706835044454,-150.12,0.0005499,120]
[313162101,1706835044466,-150.12,0.0005499,120]
[313162102,1706835044477,-150.12,0.0005499,120]
[313162103,1706835044488,-150.12,0.0005499,120]
[313162104,1706835044499,-150.12,0.0005499,120]
[313162105,1706835044509,-150.12,0.0005499,120]
[313162106,1706835044519,-150.12,0.0005499,120]
[313162107,1706835044529,-150.12,0.0005499,120]
[313162108,1706835044538,-150.12,0.0005499,120]
[313162109,1706835044548,-150.12,0.0005499,120]
[313162110,1706835044557,-150.12,0.0005499,120]
[313162111,1706835044567,-150.12,0.0005499,120]
[313162112,1706835044577,-150.12,0.0005499,120]
[313162113,1706835044586,-150.12,0.0005499,120]
[313162114,1706835044596,-150.12,0.0005499,120]
[313162115,1706835044605,-150.12,0.0005499,120]
[313162116,1706835044615,-150.12,0.0005499,120]
[313162117,1706835044625,-150.12,0.0005499,120]
[313162118,1706835044635,-150.12,0.0005499,120]
[313162119,1706835044645,-150.12,0.0005499,120]
[313162120,1706835044655,-150.12,0.0005499,120]
[313162121,1706835044665,-150.12,0.0005499,120]
[313162122,1706835044675,-150.12,0.0005499,120]
[313162123,1706835044685,-150.12,0.0005499,120]
[313162124,1706835044695,-150.12,0.0005499,120]
[313162125,1706835044705,-150.12,0.0005499,120]
[313162126,1706835044714,-150.12,0.0005499,120]
[313162127,1706835044725,-150.12,0.0005499,120]
[313162128,1706835044734,-150.12,0.0005499,120]
[313162129,1706835044744,-150.12,0.0005499,120]
[313162130,1706835044754,-150.12,0.0005499,120]
[313162131,1706835044763,-191.15364619,0.00054995,20]
[313162132,1706835044774,-3306.75797983,0.00054999,2]
[313162133,1706835044783,-280961.2455195,0.00055,31]
[313162134,1706835044793,-399692.19035224,0.00055,60]
[313162135,1706835044806,-357.04515041,0.00055,60]
[313162136,1706835044818,-982.03089986,0.00055,60]
[313162137,1706835044830,-1221.46574672,0.00055,60]
[313162138,1706835044842,-2146.52940682,0.00055,60]
[313162142,1706835045696,-155.88404782,0.00025981,2]
[313162143,1706835045706,-323.84015861,0.00026081,2]
[313162144,1706835045715,-131.65077357,0.0005499,2]
[313162145,1706835045754,-442.54922643,0.0005499,2]
[313162146,1706835045764,-1473.0,0.00055,25]
[313162147,1706835045774,-4207.87284217,0.00055,60]
[313162148,1706835045786,-261.60174887,0.00055,60]
[313162149,1706835045878,-634.42820538,0.00055,60]
[313162150,1706835045890,-483080.45109086,0.00055,60]
[313162151,1706835045902,-4168.7569479,0.00055,60]
[313162152,1706835045936,-401.51675447,0.00055,60]
[313162153,1706835045949,-8423.45533219,0.00055,60]
[313162154,1706835046055,-1172.762,0.00055,60]
[313162155,1706835069958,487000.0,0.00023,2]
[313162156,1706835163691,-27066.39628564,0.0002299,2]
[313162157,1706835163714,-155.0,0.00022996,2]
[313162158,1706835163738,-3199.01053178,0.00022998,2]
[313162159,1706835163761,-367.80860718,0.00022998,2]
[313162160,1706835163785,-155.0,0.00022999,2]
[313162161,1706835163808,-767.2821241,0.00022999,2]
[313162162,1706835163833,-400.0,0.00022999,2]
[313162163,1706835163857,-483.62261851,0.00022999,2]
[313162164,1706835163881,-185.23744553,0.00023,3]
[313162165,1706835163906,-1323220.64238726,0.00023,2]
[313162166,1706835176242,302.84488676,0.00022079,2]
[313162167,1706835211571,-155.0,0.00022997,2]
[313162168,1706835211592,-102577.91116986,0.00022998,2]
[313162169,1706835211614,-1927267.08883014,0.00023,2]
[313162170,1706835299712,161.36,0.00021894,2]
[313162171,1706835483430,166.45,0.00021972,2]
[313162172,1706835513388,205.10049588,0.00022,2]
[313162173,1706835517436,353.46,0.00022,2]
[313162174,1706835521391,500.0,0.00022,2]
[313162175,1706835542665,250.0,0.00021941,2]
[313162176,1706835551937,1000.0,0.00021953,2]
[313162177,1706835552553,499.39583585,0.00022446,2]
[313162178,1706835559134,2000.0,0.00021941,2]
[313162179,1706835588326,183.52,0.0002193,2]
[313162180,1706835655804,21700.34,0.00021953,2]
[313162181,1706835680751,270.2494542,0.00022,2]
[313162182,1706835717885,160.49,0.00020072,2]
[313162183,1706835734613,155.74,0.00022278,2]
[313162184,1706835734845,155.74,0.00022367,2]
[313162185,1706835735055,155.74,0.00022456,2]
[313162186,1706835841578,189.90641688,0.0002242,2]
[313162187,1706835846569,189.90641682,0.00022445,2]
[313162188,1706835851558,189.90641682,0.00022471,2]
[313162189,1706835856561,189.90641682,0.00022496,2]
[313162190,1706835886467,221.91,0.00021806,2]
[313162191,1706835902891,166.33,0.00021771,2]
[313162192,1706836019768,200.0,0.00021787,2]
[313162193,1706836047466,1015.95,0.00021772,2]
[313162194,1706836081711,280.11299096,0.00022501,2]
[313162195,1706836100678,630.70217148,0.00022501,2]
[313162196,1706836102441,1224.04290023,0.00022501,2]
[313162197,1706836105537,2788.61074236,0.00022501,2]
[313162198,1706836109383,4285.27606857,0.00022501,2]
[313162199,1706836115505,829.96443153,0.00022501,2]
[313162200,1706836120561,3038.59516469,0.00022501,2]
[313162201,1706836150184,176.8,0.00022,2]
[313162202,1706836152998,165.08,0.0001988,2]
[313162203,1706836155241,500.0,0.00022,2]
[313162204,1706836157885,155.74,0.00021992,2]
[313162205,1706836158117,155.74,0.00022107,2]
[313162206,1706836158450,155.74,0.00022221,2]
[313162207,1706836158612,155.74,0.00022336,2]
[313162208,1706836158843,155.74,0.00022451,2]
[313162209,1706836188945,1224.04290023,0.00022501,2]
[313162210,1706836206672,236.98,0.00021798,2]
[313162217,1706836231931,-413.30542458,0.00022502,2]
[313162218,1706836231941,-3813.65374973,0.00022503,2]
[313162219,1706836231952,-719.61166328,0.00022503,2]
[313162220,1706836231962,-218.32309605,0.00022503,2]
[313162221,1706836231974,-81.67690395,0.00022503,2]
[313162222,1706836231984,-150.0,0.00022503,2]
[313162223,1706836231994,-271.47742387,0.00022504,2]
[313162224,1706836232013,-20998.6663869,0.00022504,2]
[313162225,1706836232024,-1071.35837695,0.00022504,2]
[313162226,1706836232036,-4920.80836614,0.00022504,2]
[313162227,1706836232048,-6593.47989995,0.00022504,2]
[313162228,1706836232058,-189.90641682,0.00022521,2]
[313162229,1706836232069,-189.90641682,0.00022546,2]
[313162230,1706836232079,-3168.51,0.00022548,2]
[313162231,1706836232088,-499.99,0.00022548,2]
[313162232,1706836232098,-203.35372193,0.00022548,2]
[313162233,1706836232107,-500.0,0.00022548,2]
[313162234,1706836232117,-155.74,0.00022565,2]
[313162235,1706836232127,-189.90641682,0.00022572,2]
[313162236,1706836232137,-189.90641682,0.00022597,2]
[313162237,1706836232146,-3325.22,0.00022597,2]
[313162238,1706836232156,-5744.07971084,0.00022597,2]
[313162239,1706836232168,-1227.00027936,0.00022597,2]
[313162240,1706836232180,-763.10165825,0.00022597,2]
[313162241,1706836232192,-714.69912125,0.00022597,2]
[313162242,1706836232207,-580.41220598,0.00022597,2]
[313162243,1706836232218,-416.3775075,0.00022597,2]
[313162244,1706836232230,-554.31951682,0.00022597,2]
[313162245,1706836232239,-189.90641682,0.00022622,2]
[313162246,1706836232250,-189.90641682,0.00022647,2]
[313162247,1706836232260,-127.18825141,0.00022673,2]
[313162248,1706836232272,-62.71816541,0.00022673,2]
[313162249,1706836232282,-155.74,0.0002268,2]
[313162250,1706836232291,-116.04930721,0.00022698,2]
[313162251,1706836232308,-73.85710961,0.00022698,2]
[313162252,1706836232318,-189.90641682,0.00022723,2]
[313162253,1706836232328,-189.90641682,0.00022748,2]
[313162255,1706836232337,-5466.97172657,0.00022768,2]
[313162257,1706836232347,-218.73905877,0.00022768,2]
[313162259,1706836232357,-265.21514483,0.00022768,2]
[313162262,1706836232370,-286.37391764,0.00022769,2]
[313162278,1706836232545,-220.07533537,0.00022769,2]
[313162279,1706836232557,-189.90641682,0.00022774,2]
[313162280,1706836232567,-155.74,0.00022794,2]
[313162281,1706836232576,-2157.5,0.00022798,2]
[313162282,1706836232585,-189.90641682,0.00022799,2]
[313162283,1706836232594,-371.95236008,0.000228,2]
[313162284,1706836232603,-371.95236007,0.00022818,2]
[313162285,1706836232612,-189.90641682,0.00022824,2]
[313162286,1706836232621,-371.95236007,0.00022835,2]
[313162287,1706836232630,-189.90641682,0.00022849,2]
[313162288,1706836232639,-371.95236007,0.00022853,2]
[313162289,1706836232648,-371.95236007,0.00022871,2]
[313162290,1706836232657,-189.90641682,0.00022875,2]
[313162291,1706836232666,-5052.49822118,0.00022876,2]
[313162292,1706836232675,-1315.83826949,0.00022898,2]
[313162293,1706836232684,-279.94047067,0.00022898,2]
[313162294,1706836232693,-564.17794213,0.00022898,2]
[313162295,1706836232703,-2798.96888362,0.00022898,2]
[313162296,1706836232712,-4271.74144826,0.00022898,2]
[313162297,1706836232721,-260.74200506,0.00022898,2]
[313162298,1706836232730,-3029.87108841,0.00022898,2]
[313162299,1706836232739,-1224.04290023,0.00022898,2]
[313162300,1706836232748,-155.0,0.00022898,2]
[313162301,1706836232758,-13223.55,0.00022898,2]
[313162302,1706836232769,-199.1114,0.00022899,2]
[313162303,1706836232778,-6437.51501996,0.00022899,2]
[313162304,1706836232788,-174085.20487238,0.000229,2]
[313162305,1706836232806,-1500.21843679,0.000229,2]
[313162306,1706836232818,-314.08501124,0.000229,2]
[313162307,1706836232829,-442.76851,0.000229,2]
[313162308,1706836232840,-68657.72316959,0.000229,2]
[313162309,1706836232849,-13028.45542842,0.000229,2]
[313162310,1706836232860,-815.50841333,0.000229,2]
[313162311,1706836232871,-1003.8665897,0.000229,2]
[313162312,1706836232881,-1062.38997499,0.000229,2]
[313162321,1706836237904,-371.95236007,0.00022889,2]
[313162322,1706836237913,-532.25763993,0.000229,2]
[313162323,1706836238015,-1204.76842341,0.000229,2]
[313162324,1706836238032,-1369.29431586,0.000229,2]
[313162325,1706836238046,-14286.35801436,0.000229,2]
[313162326,1706836238055,-189.90641682,0.000229,2]
[313162327,1706836238064,-5000.0,0.000229,2]
[313162328,1706836238074,-1486.88854114,0.000229,2]
[313162329,1706836238230,-704.67582104,0.000229,2]
[313162330,1706836238242,-738.05876892,0.000229,2]
[313162331,1706836238252,-434.72426656,0.000229,2]
[313162332,1706836238261,-204.44656304,0.000229,2]
[313162333,1706836238269,-414.81561522,0.000229,2]
[313162334,1706836238281,-1796.14782345,0.000229,2]
[313162335,1706836238290,-155.74,0.00022909,2]
[313162336,1706836238299,-160.7135,0.00022997,2]
[313162337,1706836238309,-2896.88322903,0.00022997,2]
[313162338,1706836238318,-157.28417709,0.00022997,2]
[313162339,1706836238328,-195.63655884,0.00022997,2]
[313162340,1706836238338,-164.17736648,0.00022997,2]
[313162341,1706836238347,-257.41602689,0.00022997,2]
[313162342,1706836238356,-239.68010938,0.00022998,2]
[313162343,1706836238365,-502.73699602,0.00022998,2]
[313162344,1706836238374,-2246.77852355,0.00022998,2]
[313162345,1706836238383,-155.5061631,0.00022998,2]
[313162346,1706836238393,-3290.46981569,0.00022998,2]
[313162347,1706836238402,-505.32313827,0.00022998,2]
[313162349,1706836238412,-10529.35130976,0.00022998,2]
[313162351,1706836238421,-155.0,0.00022998,2]
[313162353,1706836238431,-1857.32583047,0.00022998,2]
[313162355,1706836238440,-294.1014109,0.00022998,2]
[313162356,1706836238449,-157.79806514,0.00022998,2]
[313162357,1706836238459,-155.45190428,0.00022998,2]
[313162358,1706836238468,-167.08344621,0.00022998,2]
[313162359,1706836238478,-156.29412186,0.00022998,2]
[313162360,1706836238487,-1046.17658678,0.00022998,2]
[313162361,1706836238497,-1816.85072469,0.00022998,2]
[313162362,1706836238506,-1139.78306733,0.00022998,2]
[313162363,1706836238515,-155.0,0.00022998,2]
[313162364,1706836238524,-209.02632277,0.00022998,2]
[313162365,1706836238534,-155.0,0.00022998,2]
[313162366,1706836238543,-221.04924005,0.00022998,2]
[313162367,1706836238552,-155.0,0.00022998,2]
[313162368,1706836238565,-155.0,0.00022998,2]
[313162369,1706836238574,-4706.2650502,0.00022998,2]
[313162370,1706836238584,-177.58629654,0.00022998,2]
[313162371,1706836238594,-156.07678909,0.00022998,2]
[313162372,1706836238602,-155.0,0.00022998,2]
[313162373,1706836238611,-942.61337864,0.00022998,2]
[313162374,1706836238620,-155.0,0.00022998,2]
[313162375,1706836238629,-199.40820147,0.00022998,2]
[313162376,1706836238639,-4498.70235005,0.00022998,2]
[313162377,1706836238648,-245.5740509,0.00022999,2]
[313162378,1706836238658,-155.0,0.00022999,2]
[313162379,1706836238667,-500.0,0.00022999,2]
[313162380,1706836238675,-155.0,0.00022999,2]
[313162381,1706836238684,-210.42033825,0.00022999,2]
[313162382,1706836238693,-581.39803385,0.00022999,2]
[313162383,1706836238704,-338.48887294,0.00022999,2]
[313162384,1706836238713,-288.93310823,0.00022999,2]
[313162385,1706836238722,-155.0,0.00022999,2]
[313162386,1706836238732,-400.09694554,0.00022999,2]
[313162387,1706836238742,-386.58368493,0.00022999,2]
[313162388,1706836238751,-2313.11582133,0.00022999,2]
[313162389,1706836238761,-156.22099468,0.00022999,2]
[313162390,1706836238769,-358.43337229,0.00022999,2]
[313162391,1706836238778,-155.2273107,0.00022999,2]
[313162392,1706836238787,-943.04853509,0.00022999,2]
[313162393,1706836238797,-2151.72993286,0.00022999,2]
[313162394,1706836238806,-232.66191462,0.00022999,2]
[313162395,1706836238815,-24410.55467101,0.00022999,2]
[313162396,1706836238825,-1231.70386417,0.00022999,2]
[313162397,1706836238834,-3553.49162746,0.00022999,2]
[313162398,1706836238843,-264.1261331,0.00022999,2]
[313162399,1706836238852,-155.43016461,0.00022999,2]
[313162400,1706836238861,-2139.03626942,0.00022999,2]
[313162401,1706836238869,-544.35199415,0.00022999,2]
[313162402,1706836238878,-282.08995367,0.00022999,2]
[313162403,1706836238887,-475.84102699,0.00022999,2]
[313162404,1706836238897,-583.66541534,0.00022999,2]
[313162405,1706836238906,-1048.55806349,0.00022999,2]
[313162406,1706836238915,-3185.62367316,0.00022999,2]
[313162407,1706836238924,-232.86949324,0.00022999,2]
[313162408,1706836238933,-4979.20226,0.00022999,2]
[313162409,1706836238943,-155.0,0.00022999,2]
[313162410,1706836238952,-188.92609779,0.00022999,2]
[313162411,1706836238961,-2607.57537845,0.00022999,2]
[313162412,1706836238971,-4257.98615526,0.00022999,2]
[313162413,1706836238980,-203.14380127,0.00022999,2]
[313162414,1706836238989,-541757.43836531,0.00022999,2]
[313162415,1706836238998,-4479184.6405898,0.00023,2]
[313162416,1706836240573,-371.95236007,0.00022906,2]
[313162417,1706836240583,-71062.33480061,0.00023,2]
[313162429,1706836243084,-6226.33323576,0.00023,2]
[313162430,1706836243095,-7913.39836273,0.00023,2]
[313162431,1706836243107,-1048.25955808,0.00023,2]
[313162432,1706836243118,-4381.6,0.00023,2]
[313162433,1706836243129,-2131.73979501,0.00023,2]
[313162434,1706836243155,-300.0,0.00023,2]
[313162435,1706836243265,-318.77132703,0.00023,2]
[313162436,1706836243321,-346.98199227,0.00023,2]
[313162437,1706836244027,-303.27871715,0.00022924,2]
[313162439,1706836244190,-68.67364292,0.00022924,2]
[313162441,1706836244199,-1098.60848118,0.00023,2]
[313162458,1706836246011,-279.99458956,0.00022999,2]
[313162459,1706836246022,-555.65990129,0.00022999,2]
[313162460,1706836246031,-1291.92159861,0.00023,2]
[313162461,1706836246066,-9142.59684132,0.00023,2]
[313162462,1706836246129,-314.60060934,0.00023,2]
[313162463,1706836246178,-1403.83478558,0.00023,2]
[313162464,1706836246289,-430.74475152,0.00023,2]
[313162471,1706836293869,1794.30375309,0.00022306,2]
[313162472,1706836504071,840.0,0.0002222,2]
[313162473,1706836583772,156.31,0.00022154,2]
[313162474,1706836598699,50147.4402,0.00022471,2]
[313162475,1706836631329,3690.0073,0.0002247,2]
[313162476,1706836674138,197.48,0.00021986,2]
[313162477,1706836682288,500.0,0.0002247,2]
[313162478,1706836695653,1579.935,0.0002247,2]
[313162479,1706836741491,2944.4053,0.0002247,2]
[313162480,1706836742005,170.88369882,0.0002247,2]
[313162481,1706836758233,156.38,0.0002003,2]
[313162482,1706836789855,500.0,0.000218,2]
[313162483,1706836856656,79852.2866,0.0002247,2]
[313162484,1706836866964,150.00745862,0.000225,2]
[313162485,1706836897589,449.0118,0.0002247,2]
[313162486,1706837011833,4214.71,0.00021891,2]
[313162487,1706837045242,156.31,0.00022035,2]
[313162488,1706837053138,212734.42199157,0.00022344,2]
[313162489,1706837053163,274334.57800843,0.00022344,2]
[313162490,1706837062401,150.0,0.00021891,2]
[313162491,1706837062422,150.0,0.00021891,2]
[313162492,1706837062442,28.0,0.00021891,2]
[313162493,1706837116040,164.56,0.00021853,2]
[313162494,1706837135530,150.0,0.0002247,2]
[313162495,1706837135551,150.0,0.0002247,2]
[313162496,1706837135578,150.0,0.0002247,2]
[313162497,1706837135599,150.0,0.0002247,2]
[313162498,1706837135619,150.0,0.0002247,2]
[313162499,1706837135639,150.0,0.0002247,2]
[313162500,1706837135660,100.0,0.0002247,2]
[313162501,1706837153318,150.0,0.0002144,2]
[313162502,1706837153338,74.60775814,0.0002144,2]
[313162503,1706837190192,150.0,0.00022403,2]
[313162504,1706837190212,150.0,0.00022403,2]
[313162505,1706837190231,150.0,0.00022403,2]
[313162506,1706837190251,150.0,0.00022403,2]
[313162507,1706837190271,150.0,0.00022403,2]
[313162508,1706837190291,150.0,0.00022403,2]
[313162509,1706837190312,150.0,0.00022403,2]
[313162510,1706837190332,147.37569122,0.00022403,2]
[313162511,1706837254457,150.0,0.0002247,2]
[313162512,1706837254480,143.67569837,0.0002247,2]
[313162513,1706837254924,6.32430163,0.00022501,2]
[313162514,1706837254944,150.0,0.00022501,2]
[313162515,1706837254964,268.35203835,0.00022501,2]
[313162516,1706837258680,-167.13451229,0.00022501,2]
[313162517,1706837263708,-155.0,0.00022501,2]
[313162518,1706837264054,-150.0,0.00022501,2]
[313162519,1706837264553,167.66,0.00021798,2]
[313162520,1706837266600,-148.00127863,0.00022501,2]
[313162521,1706837266621,-1.99872137,0.00022501,2]
[313162522,1706837268097,231.04821633,0.00022342,2]
[313162523,1706837268382,-150.0,0.00022501,2]
[313162524,1706837269794,-150.0,0.00022501,2]
[313162525,1706837297292,156.99,0.00019884,2]
[313162526,1706837304059,581.51783103,0.000225,2]
[313162527,1706837337207,767.13451229,0.000225,2]
[313162528,1706837383616,526.72471438,0.000225,2]
[313162529,1706837408279,780.317,0.0002247,2]
[313162539,1706837432103,-4533.26541301,0.00022501,2]
[313162541,1706837432113,-505.05818019,0.00022509,2]
[313162542,1706837432122,-965.80760899,0.00022519,2]
[313162543,1706837432134,-239.55064991,0.00022519,2]
[313162544,1706837432143,-170.94312545,0.00022533,2]
[313162545,1706837432171,-1964.1773477,0.00022533,2]
[313162546,1706837432183,-7109.54364909,0.00022533,2]
[313162547,1706837432195,-2306.58114959,0.00022533,2]
[313162548,1706837432206,-10916.01887537,0.00022533,2]
[313162549,1706837432221,-1174.37054762,0.00022533,2]
[313162550,1706837432232,-577.5783648,0.00022533,2]
[313162551,1706837432243,-1216.44,0.00022533,2]
[313162552,1706837432255,-519.80629185,0.00022533,2]
[313162553,1706837432267,-484.80589463,0.00022533,2]
[313162554,1706837432278,-1936.20164788,0.00022533,2]
[313162555,1706837432290,-5487.22393345,0.00022533,2]
[313162556,1706837432299,-1005.5144881,0.00022534,2]
[313162557,1706837432309,-1000.0,0.00022538,2]
[313162558,1706837432319,-170.88369881,0.00022541,2]
[313162559,1706837432328,-278.43851313,0.0002256,2]
[313162560,1706837432338,-155.0,0.00022568,2]
[313162561,1706837432347,-1375.07063722,0.00022568,2]
[313162562,1706837432357,-385.56531795,0.00022568,2]
[313162563,1706837432366,-156.06548771,0.00022568,2]
[313162564,1706837432376,-357.67024026,0.00022568,2]
[313162565,1706837432386,-253.56768337,0.00022568,2]
[313162566,1706837432399,-196.43231663,0.00022568,2]
[313162567,1706837432409,-155.0,0.00022568,2]
[313162568,1706837432419,-147.73302594,0.00022568,2]
[313162569,1706837432432,-895.42023063,0.00022568,2]
[313162570,1706837432442,-384.34585911,0.00022568,2]
[313162571,1706837432452,-230.80382533,0.00022568,2]
[313162572,1706837432462,-382.15634505,0.00022568,2]
[313162573,1706837432471,-388.42954623,0.00022569,2]
[313162574,1706837432481,-700.88,0.00022569,2]
[313162575,1706837432490,-97.18205033,0.00022569,2]
[313162576,1706837432502,-14413.17794967,0.00022569,2]
[313162578,1706837432512,-519376.08276163,0.0002257,2]
[313162580,1706837432523,-538.88,0.0002257,2]
[313162583,1706837432535,-818.10924833,0.0002257,2]
[313162585,1706837432547,-639.91916815,0.0002257,2]